bitfinex/quotes_SOLUSD_20211001
["timestamp","ask_amount","ask_price","bid_price","bid_amount"]
[1633071384581,17.4884285,141.05,140.91,454.51058705]
[1633071384781,17.4884285,141.05,140.91,476.83258705]
[1633071384982,17.4884285,141.05,140.91,506.33258705]
[1633071385183,17.4884285,141.05,140.91,536.33258705]
[1633071385380,17.4884285,141.05,140.91,530.69715744]
[1633071385981,17.4884285,141.05,140.92,7.39433928]
[1633071386181,17.4884285,141.05,140.93,3.02]
[1633071387585,3.02,141.07,140.93,3.02]
[1633071387786,3.02,141.07,140.93,48.843]
[1633071387986,3.02,141.07,140.93,19.343]
[1633071388386,8.65542961,141.07,140.93,19.343]
[1633071388586,3.02,141.07,140.93,19.343]
[1633071389188,3.02,141.07,140.94,66.89349883]
[1633071389391,3.02,141.07,140.95,3.02]
[1633071389988,3.02,141.07,140.95,75.7543]
[1633071393892,31.69006593,141.07,140.95,75.7543]
[1633071394095,3.02,141.07,140.95,75.7543]
[1633071397895,3.02,141.07,140.95,3.02]
[1633071399498,2.52,141.07,140.95,3.02]
[1633071399698,82.68932961,141.07,140.95,3.02]
[1633071400696,2.52,141.07,140.96,7.39902536]
[1633071400897,2.52,141.07,140.96,11.50174013]
[1633071401098,8.15542961,141.07,140.95,7.09669481]
[1633071401298,24.38342961,141.07,140.95,7.09669481]
[1633071401696,24.38342961,141.07,140.95,11.2009491]
[1633071402096,76.6878,141.06,140.95,11.2009491]
[1633071402300,79.7078,141.06,140.96,4.10406521]
[1633071403499,3.02,141.08,140.98,4.10403577]
[1633071403698,8.20874852,141.09,140.99,7.12364355]
[1633071403901,8.20874852,141.09,141.0,7.09836765]
[1633071404299,8.20874852,141.09,141.0,11.20248242]
[1633071405100,8.20874852,141.09,141.01,3.02]
[1633071405300,8.20874852,141.09,141.02,7.09863791]
[1633071405899,8.20874852,141.09,141.01,3.02]
[1633071407099,8.20874852,141.09,141.03,435.38630975]
[1633071408303,7.70874852,141.09,141.03,435.38630975]
[1633071420814,7.70874852,141.09,141.03,494.88630975]
[1633071421211,7.70874852,141.09,141.03,435.38630975]
[1633071421413,7.70874852,141.09,141.03,465.38630975]
[1633071421611,7.70874852,141.09,141.03,494.88630975]
[1633071422415,3.02,141.16,141.09,5.55675239]
[1633071422611,3.02,141.16,141.09,29.17075239]
[1633071424010,3.02,141.16,141.09,5.55675239]
[1633071424211,28.55238847,141.19,141.09,5.55675239]
[1633071424612,3.02,141.2,141.09,5.55675239]
[1633071424811,5.63542961,141.19,141.09,5.55675239]
[1633071425010,3.02,141.18,141.09,5.55675239]
[1633071425211,0.02088,141.17,141.09,5.55675239]
[1633071425813,0.02088,141.17,141.06,2.57675239]
[1633071426017,5.65630961,141.17,141.06,2.57675239]
[1633071426414,85.32610961,141.17,141.06,2.57675239]
[1633071428315,3.02,141.16,141.04,5.07104341]
[1633071428520,23.23319711,141.15,141.04,5.07104341]
[1633071429520,28.86862672,141.15,141.05,2.04032649]
[1633071429719,28.86862672,141.15,141.04,5.07044158]
[1633071431922,28.86862672,141.15,141.05,2.04944767]
[1633071433121,28.86862672,141.15,141.06,2.04935669]
[1633071433323,28.86862672,141.15,141.05,2.0513361]
[1633071433522,23.23319711,141.15,141.05,2.0513361]
[1633071433728,23.23319711,141.15,141.06,2.04767415]
[1633071434326,23.23319711,141.15,141.05,2.04492007]
[1633071434527,23.23319711,141.15,141.06,2.04257376]
[1633071435628,3.02,141.16,141.06,2.04257376]
[1633071435829,3.02,141.16,141.07,2.03157828]
[1633071436228,5.63542961,141.17,141.08,2.01876935]
[1633071436631,21.83132203,141.16,141.08,2.01876935]
[1633071437629,21.83132203,141.16,141.07,1.98786131]
[1633071439431,27.46675164,141.16,141.07,1.98786131]
[1633071439632,62.85355138,141.16,141.05,2.00023134]
[1633071439838,41.02222935,141.16,141.04,5.05508719]
[1633071440034,17.49923981,141.16,141.07,1.9938735]
[1633071440234,3.02,141.19,141.08,5.00531456]
[1633071440434,294.97526187,141.23,141.08,5.00531456]
[1633071440435,3.02,141.21,141.09,1.98056959]
[1633071440636,3.02,141.21,141.1,4.99135889]
[1633071440838,3.02,141.21,141.11,4.18286129]
[1633071441435,292.24404044,141.23,141.11,7.20286129]
[1633071441839,292.24404044,141.23,141.11,9.1591504]
[1633071442037,292.24404044,141.23,141.11,7.20286129]
[1633071442438,292.24404044,141.23,141.11,9.15626975]
[1633071442641,5.63542961,141.22,141.11,1.95340846]
[1633071442838,5.63542961,141.22,141.05,5.63542961]
[1633071442839,3.02,141.21,141.09,3.02]
[1633071443240,5.63542961,141.2,141.11,463.86134401]
[1633071443439,3.02,141.21,141.11,463.86134401]
[1633071443638,29.02839532,141.2,141.11,463.86134401]
[1633071444840,3.02,141.21,141.11,463.86134401]
[1633071445039,289.22404044,141.23,141.11,463.86134401]
[1633071445238,292.24404044,141.23,141.11,466.88134401]
[1633071445839,320.21231841,141.23,141.11,466.88134401]
[1633071446539,320.21231841,141.23,141.11,468.81199854]
[1633071447439,320.21231841,141.23,141.11,4.95065453]
[1633071447640,320.21231841,141.23,141.11,3.02]
[1633071449941,320.21231841,141.23,141.11,33.02]
[1633071450141,320.21231841,141.23,141.11,34.89811926]
[1633071450360,289.22404044,141.23,141.11,64.39811926]
[1633071450742,289.22404044,141.23,141.12,30.0]
[1633071450946,289.22404044,141.23,141.13,3.02]
[1633071451143,289.22404044,141.23,141.13,32.52]
[1633071451541,289.22404044,141.23,141.13,62.52]
[1633071452844,310.85354771,141.23,141.13,62.52]
[1633071453446,289.22404044,141.23,141.13,62.52]
[1633071454046,289.22404044,141.23,141.13,3.02]
[1633071454248,289.22404044,141.23,141.15,29.5]
[1633071454449,289.22404044,141.23,141.15,32.52]
[1633071454648,289.22404044,141.23,141.15,581.45411551]
[1633071456049,289.22404044,141.23,141.16,5.63542961]
[1633071456251,289.22404044,141.23,141.17,3.02]
[1633071460676,289.22404044,141.23,141.21,29.5]
[1633071460872,289.22404044,141.23,141.21,32.52]
[1633071461672,289.22404044,141.23,141.21,62.52]
[1633071463775,289.22404044,141.23,141.21,3.02]
[1633071463976,289.22404044,141.23,141.22,59.5]
[1633071466376,22.86466038,141.3,141.22,59.5]
[1633071466577,3.02,141.33,141.22,59.5]
[1633071467177,82.92992961,141.36,141.23,3.02]
[1633071467382,77.2945,141.36,141.23,3.02]
[1633071468177,77.2945,141.36,141.25,59.5]
[1633071468378,98.597586,141.36,141.26,3.02]
[1633071469981,3.02,141.35,141.24,3.02]
[1633071470180,3.02,141.35,141.22,338.78602064]
[1633071470378,5.65630961,141.34,141.22,338.78602064]
[1633071470578,26.19889943,141.33,141.24,30.0]
[1633071470779,26.19889943,141.33,141.22,338.78602064]
[1633071471177,26.19889943,141.33,141.22,368.78602064]
[1633071471979,26.19889943,141.33,141.22,398.28602064]
[1633071472181,26.19889943,141.33,141.22,338.78602064]
[1633071474788,26.19889943,141.33,141.22,416.19092064]
[1633071475382,26.19889943,141.33,141.22,338.78602064]
[1633071476082,26.19889943,141.33,141.22,446.54842064]
[1633071476283,26.19889943,141.33,141.22,417.04842064]
[1633071476482,26.19889943,141.33,141.22,476.54842064]
[1633071476684,26.19889943,141.33,141.22,398.28602064]
[1633071477288,26.19889943,141.33,141.23,3.02]
[1633071477687,26.19889943,141.33,141.24,30.0]
[1633071477890,26.19889943,141.33,141.24,59.5]
[1633071478086,85.94992961,141.36,141.25,3.02]
[1633071478888,80.3145,141.36,141.25,3.02]
[1633071479088,27.71557996,141.35,141.25,3.02]
[1633071480491,80.3145,141.36,141.25,3.02]
[1633071480690,77.2945,141.36,141.25,3.02]
[1633071481490,100.66742931,141.36,141.25,3.02]
[1633071481891,100.66742931,141.36,141.25,32.52]
[1633071482291,100.66742931,141.36,141.25,62.52]
[1633071482493,77.2945,141.36,141.25,62.52]
[1633071482895,3.02,141.4,141.25,62.52]
[1633071483092,81.2141,141.4,141.25,81.047]
[1633071483293,78.1941,141.4,141.27,29.5]
[1633071483494,78.1941,141.4,141.28,3.02]
[1633071484491,78.1941,141.4,141.28,32.52]
[1633071484692,3.02,141.43,141.28,32.52]
[1633071485092,3.02,141.43,141.3,457.53883516]
[1633071485292,0.02088,141.44,141.31,3.02]
[1633071485495,94.05436191,141.46,141.31,3.02]
[1633071485496,0.02088,141.45,141.31,3.02]
[1633071485691,74.9884,141.46,141.32,5.63542961]
[1633071485894,74.9884,141.46,141.33,3.02]
[1633071486093,74.9884,141.46,141.33,23.038]
[1633071486894,3.02,141.48,141.33,23.038]
[1633071487094,3.02,141.48,141.33,28.67342961]
[1633071487291,3.02,141.48,141.35,29.5]
[1633071487491,3.02,141.48,141.36,3.02]
[1633071488693,3.02,141.48,141.36,78.8876]
[1633071489996,3.02,141.48,141.36,3.02]
[1633071490798,21.43277657,141.47,141.36,3.02]
[1633071500907,3.02,141.46,141.34,3.02]
[1633071502706,5.63542961,141.45,141.35,30.0]
[1633071502906,23.14123937,141.44,141.35,30.0]
[1633071503305,23.14123937,141.44,141.34,3.02]
[1633071507914,72.0097,141.45,141.34,3.02]
[1633071508114,72.0097,141.45,141.34,20.91]
[1633071508310,72.0097,141.45,141.34,22.67170804]
[1633071508512,29.37776748,141.47,141.34,22.67170804]
[1633071508714,29.37776748,141.47,141.34,20.91]
[1633071508913,29.39167325,141.46,141.34,20.91]
[1633071509912,29.39167325,141.46,141.35,29.5]
[1633071510115,29.39167325,141.46,141.36,3.02]
[1633071510914,3.02,141.47,141.36,3.02]
[1633071511114,3.02,141.49,141.36,20.40257686]
[1633071511318,3.02,141.49,141.36,98.82807686]
[1633071511918,24.73286155,141.48,141.36,81.4455]
[1633071512115,24.73286155,141.48,141.36,3.02]
[1633071512315,3.02,141.47,141.36,3.02]
[1633071528025,35.01319709,141.47,141.36,3.02]
[1633071528429,29.37776748,141.47,141.36,3.02]
[1633071529830,29.37776748,141.47,141.34,1.81211121]
[1633071532930,21.73253595,141.45,141.33,4.84019194]
[1633071533132,24.75253595,141.45,141.34,1.8221788]
[1633071533732,100.04883595,141.45,141.34,1.8221788]
[1633071534332,8.2147011,141.44,141.34,1.8221788]
[1633071534535,23.49710422,141.42,141.33,1.83897699]
[1633071534734,3.02,141.41,141.33,1.83897699]
[1633071534934,8.65542961,141.41,141.32,1.83242705]
[1633071535132,22.74298303,141.41,141.32,1.83242705]
[1633071535532,22.74298303,141.41,141.31,1.83850054]
[1633071536932,22.74298303,141.41,141.32,1.83785923]
[1633071537938,5.63542961,141.4,141.31,1.84663624]
[1633071538132,26.78372011,141.39,141.31,1.84663624]
[1633071538336,26.78372011,141.39,141.3,459.38948831]
[1633071538536,26.78372011,141.39,141.31,1.85046814]
[1633071539535,26.78372011,141.39,141.32,1.83795323]
[1633071539739,5.63542961,141.4,141.32,1.83795323]
[1633071540540,14.08755342,141.41,141.32,1.83795323]
[1633071541142,26.07085099,141.44,141.33,4.85261596]
[1633071541340,26.07085099,141.44,141.34,1.82775005]
[1633071541539,31.7062806,141.44,141.34,1.82775005]
[1633071541939,56.24798248,141.44,141.34,1.82775005]
[1633071543738,70.3355359,141.44,141.33,4.90407416]
[1633071543940,70.3355359,141.44,141.33,4.88319416]
[1633071544344,64.70010629,141.44,141.34,1.85928018]
[1633071544541,64.70010629,141.44,141.34,16.73528018]
[1633071544943,14.08755342,141.44,141.35,4.86269371]
[1633071545141,14.08755342,141.44,141.37,1.82161123]
[1633071545741,14.08755342,141.44,141.36,4.84541441]
[1633071548145,14.08755342,141.44,141.36,3.02]
[1633071548946,14.08755342,141.44,141.36,4.83830884]
[1633071549145,14.08755342,141.44,141.36,3.02]
[1633071551147,14.08755342,141.44,141.36,4.83218458]
[1633071551547,14.08755342,141.44,141.36,3.02]
[1633071551747,14.08755342,141.44,141.36,4.83305931]
[1633071552751,14.08755342,141.44,141.36,3.02]
[1633071554052,29.43257743,141.46,141.36,3.02]
[1633071554451,35.06800704,141.46,141.36,3.02]
[1633071555360,3.02,141.45,141.35,1.81228379]
[1633071555553,3.02,141.45,141.34,1.83458438]
[1633071555753,3.02,141.45,141.31,85.53164231]
[1633071555754,5.63542961,141.44,141.32,1.8458643]
[1633071555956,21.54884846,141.42,141.32,1.8458643]
[1633071556353,27.18427807,141.42,141.32,1.8458643]
[1633071558966,24.56884846,141.42,141.32,1.8458643]
[1633071559358,30.20427807,141.42,141.32,1.8458643]
[1633071559757,24.56884846,141.42,141.33,1.83232231]
[1633071560159,21.54884846,141.42,141.33,4.85232231]
[1633071560761,21.54884846,141.42,141.33,1.83232231]
[1633071560959,24.56884846,141.42,141.32,1.88920769]
[1633071562760,24.56884846,141.42,141.31,82.58021185]
[1633071562962,5.63542961,141.41,141.31,1.87881185]
[1633071563165,29.95400572,141.39,141.3,459.42160083]
[1633071563962,29.95400572,141.39,141.31,1.88591275]
[1633071564763,29.95400572,141.39,141.3,459.43418095]
[1633071565565,35.58943533,141.39,141.3,459.43418095]
[1633071565966,29.95400572,141.39,141.3,459.43418095]
[1633071566166,29.95400572,141.39,141.31,1.90153499]
[1633071566768,29.95400572,141.39,141.3,459.44965822]
[1633071567389,35.58943533,141.39,141.3,459.44965822]
[1633071568169,35.58943533,141.39,141.31,1.90784879]
[1633071568372,29.95400572,141.39,141.31,1.90784879]
[1633071569373,35.58943533,141.39,141.31,1.90784879]
[1633071569573,35.58943533,141.39,141.3,459.45162278]
[1633071570173,35.58943533,141.39,141.31,1.91249559]
[1633071570573,35.58943533,141.39,141.3,459.45600643]
[1633071570975,35.58943533,141.39,141.3,1.91717127]
[1633071571974,35.58943533,141.39,141.29,4.94824566]
[1633071572174,3.02,141.38,141.29,1.92824566]
[1633071572576,5.63542961,141.37,141.29,1.92824566]
[1633071572775,28.38275069,141.36,141.28,1.93406315]
[1633071573173,34.0181803,141.36,141.28,1.93406315]
[1633071574979,37.0381803,141.36,141.28,1.93406315]
[1633071575176,37.0381803,141.36,141.27,1.95392091]
[1633071575376,37.0381803,141.36,141.28,1.95209852]
[1633071575978,66.52393801,141.36,141.28,1.95209852]
[1633071576179,66.52393801,141.36,141.27,1.97041427]
[1633071576378,66.52393801,141.36,141.24,7.29263437]
[1633071576379,80.61149143,141.36,141.26,1.9758652]
[1633071577578,77.6914,141.35,141.26,1.9758652]
[1633071577781,3.02,141.34,141.26,1.9758652]
[1633071579404,32.50575771,141.34,141.26,1.9758652]
[1633071580786,32.50575771,141.34,141.27,1.98548342]
[1633071583586,3.02,141.34,141.27,1.98548342]
[1633071583888,3.02,141.34,141.28,1.98528572]
[1633071585087,19.72298303,141.36,141.28,18.69228572]
[1633071585287,3.02,141.38,141.29,1.97620538]
[1633071585487,3.02,141.38,141.32,1.95816393]
[1633071585687,3.02,141.38,141.32,25.77016393]
[1633071585889,3.02,141.38,141.33,1.95240066]
[1633071586087,3.02,141.4,141.33,1.95240066]
[1633071587088,8.65542961,141.4,141.32,1.95945241]
[1633071587488,8.65542961,141.4,141.33,1.97798347]
[1633071587888,8.65542961,141.4,141.32,1.9877387]
[1633071588087,8.65542961,141.4,141.33,1.98396786]
[1633071588997,3.02,141.4,141.33,1.98396786]
[1633071589189,3.02,141.4,141.33,17.73096786]
[1633071590993,3.02,141.4,141.34,1.9628482]
[1633071592393,3.02,141.4,141.33,1.96498308]
[1633071593795,8.65542961,141.4,141.31,361.41296605]
[1633071595195,8.65542961,141.4,141.33,1.96225766]
[1633071595595,3.02,141.4,141.33,1.96225766]
[1633071597424,8.65542961,141.4,141.33,1.96225766]
[1633071599004,8.65542961,141.4,141.32,1.9827992]
[1633071600608,3.02,141.4,141.32,1.9827992]
[1633071600810,3.02,141.4,141.33,1.98443086]
[1633071601012,3.02,141.4,141.34,1.98047838]
[1633071601214,3.02,141.4,141.35,1.97331279]
[1633071601410,3.02,141.42,141.36,1.96851099]
[1633071601615,3.02,141.42,141.36,24.29751099]
[1633071602015,3.02,141.42,141.36,22.329]
[1633071602416,3.02,141.44,141.36,22.329]
[1633071602812,3.02,141.44,141.35,1.97026776]
[1633071603212,3.02,141.44,141.34,7.41552761]
[1633071603213,3.02,141.44,141.36,1.97287247]
[1633071603813,3.02,141.44,141.37,1.9641137]
[1633071604618,76.8873,141.46,141.37,1.9641137]
[1633071604817,3.02,141.47,141.37,1.9641137]
[1633071605017,8.65542961,141.49,141.38,1.97327988]
[1633071605820,3.02,141.49,141.39,2.00116345]
[1633071607022,5.63542961,141.48,141.39,2.00116345]
[1633071607223,5.63542961,141.48,141.38,2.00791569]
[1633071607620,24.09342961,141.48,141.37,5.03793375]
[1633071607820,3.02,141.47,141.36,61.52399462]
[1633071608020,26.98644093,141.46,141.36,59.5]
[1633071608220,32.62187054,141.46,141.36,59.5]
[1633071608419,32.62187054,141.46,141.36,30.0]
[1633071608620,32.62187054,141.46,141.35,5.04854163]
[1633071608820,32.62187054,141.46,141.36,2.02356571]
[1633071609020,26.98644093,141.46,141.36,2.02356571]
[1633071610024,26.98644093,141.46,141.35,5.04664539]
[1633071610224,5.63542961,141.45,141.35,5.04664539]
[1633071611027,5.63542961,141.45,141.35,2.02664539]
[1633071611226,5.63542961,141.45,141.32,80.16756027]
[1633071611227,27.99542961,141.45,141.34,2.04084654]
[1633071611626,5.63542961,141.44,141.35,2.03418852]
[1633071611826,3.02,141.43,141.35,2.03418852]
[1633071612626,26.132,141.43,141.35,2.03418852]
[1633071613926,31.76742961,141.43,141.35,2.03418852]
[1633071614126,31.76742961,141.43,141.36,2.025317]
[1633071617632,3.02,141.43,141.36,2.025317]
[1633071617829,3.02,141.43,141.37,2.02597682]
[1633071618028,79.848,141.45,141.37,2.02597682]
[1633071618229,79.848,141.45,141.39,2.00965201]
[1633071619028,79.848,141.45,141.38,2.01795988]
[1633071619230,100.088,141.45,141.37,2.02129594]
[1633071619430,105.72342961,141.45,141.37,2.02129594]
[1633071620031,132.97029844,141.45,141.35,2.04500274]
[1633071620431,15.53394719,141.44,141.35,2.04500274]
[1633071620635,3.02,141.43,141.34,2.04822852]
[1633071620831,35.90229844,141.43,141.34,2.04822852]
[1633071621031,27.24686883,141.42,141.33,2.04823021]
[1633071621232,28.47789772,141.4,141.33,2.04823021]
[1633071621453,3.02,141.39,141.31,2.04855057]
[1633071621631,50.20286883,141.39,141.3,2.04876982]
[1633071621834,15.53394719,141.38,141.29,2.04883381]
[1633071622031,3.02,141.37,141.29,2.04883381]
[1633071622232,8.65542961,141.37,141.29,2.04883381]
[1633071622433,8.65542961,141.37,141.28,2.04894205]
[1633071622634,29.24638327,141.35,141.28,2.04894205]
[1633071622837,29.24638327,141.35,141.27,59.5]
[1633071622838,3.02,141.34,141.27,61.54857968]
[1633071623033,3.02,141.34,141.28,2.04844397]
[1633071623636,3.02,141.34,141.27,61.54858128]
[1633071623833,5.63542961,141.33,141.27,61.54858128]
[1633071624033,5.63542961,141.33,141.27,32.04858128]
[1633071624460,5.63542961,141.33,141.27,2.04858128]
[1633071624633,18.193,141.34,141.27,2.04858128]
[1633071624836,18.193,141.34,141.26,2.04807371]
[1633071625036,18.193,141.34,141.27,2.04797557]
[1633071625235,3.02,141.34,141.27,2.04797557]
[1633071625440,3.02,141.34,141.28,2.0477349]
[1633071625636,3.02,141.34,141.29,2.04770454]
[1633071625836,3.02,141.34,141.28,2.04764406]
[1633071626037,3.02,141.34,141.29,2.04763205]
[1633071626237,3.02,141.34,141.28,2.04764721]
[1633071628041,3.02,141.34,141.29,2.04743649]
[1633071628637,3.02,141.37,141.3,2.04718398]
[1633071628841,3.02,141.4,141.32,2.0469604]
[1633071629237,3.02,141.4,141.29,11.7871728]
[1633071629238,3.02,141.4,141.33,2.04674341]
[1633071629437,24.99613458,141.39,141.33,2.04674341]
[1633071629640,24.99613458,141.39,141.31,2.04711175]
[1633071629838,3.02,141.38,141.3,2.04725341]
[1633071630037,8.65542961,141.38,141.29,2.0473846]
[1633071630240,37.40558427,141.38,141.3,2.04734707]
[1633071630438,37.40558427,141.38,141.29,2.04741572]
[1633071631241,37.40558427,141.38,141.31,463.90905985]
[1633071631443,37.36129224,141.38,141.31,463.90905985]
[1633071632641,37.36129224,141.38,141.28,2.04750821]
[1633071633246,37.36129224,141.38,141.29,2.04745914]
[1633071634045,37.36129224,141.38,141.28,2.04748685]
[1633071634245,58.26629224,141.38,141.28,2.04748685]
[1633071636347,58.26629224,141.38,141.29,2.04768399]
[1633071636746,52.63086263,141.38,141.29,2.04768399]
[1633071636946,2.97570797,141.38,141.3,2.04752884]
[1633071637147,2.97570797,141.38,141.31,2.04736608]
[1633071637747,2.97570797,141.38,141.3,2.04753149]
[1633071637947,2.97570797,141.38,141.31,2.04752761]
[1633071638749,2.97570797,141.38,141.33,2.04730984]
[1633071638948,80.3258,141.42,141.34,2.0471991]
[1633071639158,80.3258,141.42,141.34,23.0001991]
[1633071639549,80.3258,141.42,141.35,2.04706284]
[1633071639750,3.02,141.42,141.35,2.04706284]
[1633071639951,3.02,141.46,141.35,2.04706284]
[1633071640150,3.02,141.46,141.37,2.03569734]
[1633071640351,3.02,141.48,141.39,2.01849251]
[1633071641749,3.02,141.48,141.38,2.00108372]
[1633071642150,3.02,141.48,141.39,2.00029919]
[1633071642351,79.9594,141.49,141.39,2.00029919]
[1633071642550,79.9594,141.49,141.41,1.98536076]
[1633071642750,78.7884,141.52,141.41,16.69236076]
[1633071642950,3.02,141.52,141.41,16.69236076]
[1633071643554,3.02,141.52,141.41,14.707]
[1633071643751,3.02,141.52,141.4,5.00813001]
[1633071643956,8.65542961,141.52,141.4,3.02]
[1633071644552,8.65542961,141.52,141.4,5.0122738]
[1633071644754,8.65542961,141.52,141.4,3.02]
[1633071645153,8.65542961,141.52,141.4,33.02]
[1633071645674,3.02,141.52,141.4,33.02]
[1633071646075,3.02,141.52,141.4,62.52]
[1633071646274,3.02,141.52,141.4,32.52]
[1633071646675,3.02,141.52,141.4,3.02]
[1633071648074,3.02,141.52,141.4,33.02]
[1633071648277,3.02,141.52,141.4,62.52]
[1633071648775,24.57039838,141.52,141.4,3.02]
[1633071649576,3.02,141.52,141.4,3.02]
[1633071651376,3.02,141.52,141.4,32.52]
[1633071651577,8.65542961,141.52,141.4,32.52]
[1633071651784,8.65542961,141.52,141.4,3.02]
[1633071654279,8.65542961,141.52,141.39,518.6292409]
[1633071659380,8.65542961,141.52,141.4,73.7651]
[1633071659580,3.02,141.52,141.4,95.2611]
[1633071660980,3.02,141.52,141.4,125.2611]
[1633071661382,3.02,141.52,141.4,127.24003957]
[1633071661589,3.02,141.52,141.41,29.5]
[1633071661782,3.02,141.52,141.42,3.02]
[1633071664585,8.65542961,141.56,141.42,4.98597603]
[1633071664784,3.02,141.56,141.43,1.96227385]
[1633071664986,3.02,141.56,141.44,3.02]
[1633071665584,3.02,141.56,141.44,33.02]
[1633071665986,3.02,141.56,141.44,34.99597447]
[1633071666385,8.65542961,141.56,141.44,34.99597447]
[1633071666585,8.65542961,141.56,141.44,32.52]
[1633071666791,8.65542961,141.56,141.44,34.50421513]
[1633071666987,8.65542961,141.56,141.48,548.03574573]
[1633071668993,8.65542961,141.56,141.48,565.26074573]
[1633071669189,3.02,141.56,141.48,565.26074573]
[1633071670193,8.65542961,141.56,141.48,565.26074573]
[1633071670393,8.65542961,141.56,141.48,548.03574573]
[1633071671395,8.65542961,141.56,141.48,570.65074573]
[1633071671597,3.02,141.56,141.48,570.65074573]
[1633071672598,3.02,141.56,141.48,572.62182148]
[1633071672999,51.76226715,141.58,141.48,572.62182148]
[1633071673202,43.10683754,141.58,141.48,575.64182148]
[1633071673401,43.10683754,141.58,141.5,1.9466455]
[1633071673402,0.035991,141.58,141.5,1.9466455]
[1633071673600,0.035991,141.58,141.51,1.93912995]
[1633071673803,0.035991,141.58,141.51,18.46612995]
[1633071675201,0.035991,141.58,141.51,16.527]
[1633071675399,0.035991,141.58,141.49,1.94006719]
[1633071676803,26.65642061,141.58,141.49,3.02]
[1633071677205,21.020991,141.58,141.49,3.02]
[1633071677402,0.035991,141.58,141.49,3.02]
[1633071678003,0.035991,141.58,141.5,1.90479671]
[1633071678207,0.035991,141.58,141.51,3.02]
[1633071680504,0.035991,141.58,141.53,30.0]
[1633071680704,0.035973,141.58,141.53,33.02]
[1633071681504,0.035973,141.58,141.53,62.52]
[1633071691118,0.035973,141.58,141.53,3.02]
[1633071691720,0.035973,141.58,141.55,29.5]
[1633071691919,0.035973,141.58,141.55,59.5]
[1633071692320,0.035973,141.58,141.53,3.02]
[1633071692720,0.035973,141.58,141.53,62.52]
[1633071693919,0.035973,141.58,141.55,29.5]
[1633071694120,0.035973,141.58,141.55,59.5]
[1633071694321,0.035973,141.58,141.53,3.02]
[1633071694524,0.035973,141.58,141.53,33.02]
[1633071694722,0.035973,141.58,141.53,62.52]
[1633071697424,0.035973,141.58,141.53,62.4768513]
[1633071699429,0.035973,141.58,141.54,75.778]
[1633071700429,0.035973,141.58,141.55,3.02]
[1633071702229,0.035973,141.58,141.55,4.86892819]
[1633071702730,0.035973,141.58,141.55,3.02]
[1633071704632,0.035973,141.58,141.55,4.87885349]
[1633071706534,0.035973,141.58,141.55,1.85885349]
[1633071706932,0.035973,141.58,141.55,31.35885349]
[1633071707132,0.035973,141.58,141.56,1.87991864]
[1633071709136,0.035973,141.58,141.57,1.87673985]
[1633071709334,0.035973,141.58,141.57,24.38273985]
[1633071709734,0.035973,141.58,141.57,22.506]
[1633071710336,0.035973,141.58,141.57,25.526]
[1633071710938,0.005973,141.58,141.57,32.62486482]
[1633071711337,0.005973,141.58,141.57,38.26029443]
[1633071711538,0.005973,141.58,141.57,426.05678923]
[1633071711737,3.02,141.72,141.58,33.0]
[1633071711938,3.02,141.72,141.6,1.84833439]
[1633071712138,3.02,141.72,141.6,4.86833439]
[1633071712538,5.63542961,141.73,141.64,1.80886408]
[1633071712939,3.02,141.74,141.64,1.80886408]
[1633071713140,0.02088,141.75,141.73,5.63542961]
[1633071713541,0.02088,141.77,141.73,5.63542961]
[1633071713941,0.02088,141.77,141.73,25.22042961]
[1633071714144,0.02088,141.79,141.73,25.22042961]
[1633071714340,3.02,141.8,141.73,25.22042961]
[1633071714740,3.02,141.8,141.73,5.63542961]
[1633071715140,33.79238451,141.8,141.73,5.63542961]
[1633071715544,116.19557814,141.66,141.65,76.9119]
[1633071715741,42.26182035,141.66,141.65,76.9119]
[1633071715940,42.26182035,141.66,141.63,59.5]
[1633071716140,42.26182035,141.66,141.63,30.0]
[1633071716539,42.26182035,141.66,141.6,3.02]
[1633071716841,42.26182035,141.66,141.61,1.81051502]
[1633071717042,23.65082035,141.66,141.6,4.83203428]
[1633071717243,23.65082035,141.66,141.61,1.80198264]